[Event "Titled Tuesday Blitz July 13 2021"]
[White "Borisova, Ekaterina"]
[Black "Hebden, Mark L"]
[WhiteFideId "34124184"]
[BlackFideId "400084"]
[WhiteElo "2021"]
[BlackElo "2457"]
[Result "1-0"]
[Round "09"]
[TimeControl "180+1"]
[Date "2021.07.13"]
[WhiteClock "0:00:11"]
[BlackClock "0:00:10"]

1. e4 {[%clk 0:02:56]}  e5 {[%clk 0:02:59]} 2. Nc3 {[%clk 0:02:56]}  Nf6 {[%clk 0:02:57]} 3. d4 {[%clk 0:02:56]}  exd4 {[%clk 0:02:55]} 4. Qxd4 {[%clk 0:02:57]}  Nc6 {[%clk 0:02:54]} 5. Qd3 {[%clk 0:02:57]}  g6 {[%clk 0:02:52]} 6. Bg5 {[%clk 0:02:50]}  h6 {[%clk 0:02:51]} 7. Bf4 {[%clk 0:02:43]}  Bg7 {[%clk 0:02:49]} 8. O-O-O {[%clk 0:02:43]}  O-O {[%clk 0:02:47]} 9. f3 {[%clk 0:02:43]}  d6 {[%clk 0:02:46]} 10. Qd2 {[%clk 0:02:43]}  Kh7 {[%clk 0:02:43]} 11. Nge2 {[%clk 0:02:42]}  a6 {[%clk 0:02:41]} 12. g4 {[%clk 0:02:41]}  Be6 {[%clk 0:02:29]} 13. h4 {[%clk 0:02:38]}  Ne5 {[%clk 0:02:27]} 14. Nd4 {[%clk 0:02:36]}  c5 {[%clk 0:02:19]} 15. Nxe6 {[%clk 0:02:34]}  fxe6 {[%clk 0:02:20]} 16. Be2 {[%clk 0:02:33]}  Ne8 {[%clk 0:02:13]} 17. h5 {[%clk 0:02:19]}  g5 {[%clk 0:02:10]} 18. Be3 {[%clk 0:02:12]}  Qa5 {[%clk 0:02:08]} 19. f4 {[%clk 0:02:04]}  gxf4 {[%clk 0:02:02]} 20. Bxf4 {[%clk 0:02:04]}  b5 {[%clk 0:01:56]} 21. g5 {[%clk 0:01:48]}  Rxf4 {[%clk 0:01:53]} 22. Qxf4 {[%clk 0:01:42]}  hxg5 {[%clk 0:01:50]} 23. Qg3 {[%clk 0:01:32]}  Bh6 {[%clk 0:01:49]} 24. Rxd6 {[%clk 0:01:28]}  Nxd6 {[%clk 0:01:33]} 25. Qxe5 {[%clk 0:01:27]}  b4 {[%clk 0:01:13]} 26. Qxd6 {[%clk 0:00:56]}  bxc3 {[%clk 0:01:11]} 27. Bc4 {[%clk 0:00:52]}  cxb2+ {[%clk 0:01:03]} 28. Kb1 {[%clk 0:00:49]}  Qd8 {[%clk 0:00:48]} 29. Qxe6 {[%clk 0:00:47]}  Qe8 {[%clk 0:00:48]} 30. Qf5+ {[%clk 0:00:47]}  Kh8 {[%clk 0:00:47]} 31. e5 {[%clk 0:00:44]}  Qe7 {[%clk 0:00:46]} 32. e6 {[%clk 0:00:43]}  Rf8 {[%clk 0:00:45]} 33. Qd5 {[%clk 0:00:39]}  g4 {[%clk 0:00:44]} 34. Rf1 {[%clk 0:00:33]}  Rxf1+ {[%clk 0:00:39]} 35. Bxf1 {[%clk 0:00:34]}  g3 {[%clk 0:00:37]} 36. Kxb2 {[%clk 0:00:27]}  Bg7+ {[%clk 0:00:34]} 37. Kb3 {[%clk 0:00:25]}  Qf6 {[%clk 0:00:33]} 38. Qc4 {[%clk 0:00:17]}  Qb2+ {[%clk 0:00:27]} 39. Ka4 {[%clk 0:00:16]}  Bf6 {[%clk 0:00:22]} 40. h6 {[%clk 0:00:15]}  Qd4 {[%clk 0:00:17]} 41. Qxd4 {[%clk 0:00:13]}  cxd4 {[%clk 0:00:17]} 42. Bg2 {[%clk 0:00:13]}  Kh7 {[%clk 0:00:16]} 43. Ka5 {[%clk 0:00:13]}  Kxh6 {[%clk 0:00:16]} 44. Kxa6 {[%clk 0:00:14]}  Kg5 {[%clk 0:00:16]} 45. Kb7 {[%clk 0:00:14]}  Kf4 {[%clk 0:00:17]} 46. a4 {[%clk 0:00:15]}  Ke3 {[%clk 0:00:17]} 47. a5 {[%clk 0:00:15]}  Kd2 {[%clk 0:00:16]} 48. a6 {[%clk 0:00:15]}  Kxc2 {[%clk 0:00:16]} 49. a7 {[%clk 0:00:15]}  d3 {[%clk 0:00:17]} 50. a8=Q {[%clk 0:00:16]}  d2 {[%clk 0:00:17]} 51. Qa2+ {[%clk 0:00:16]}  Kc1 {[%clk 0:00:17]} 52. Bf3 {[%clk 0:00:16]}  g2 {[%clk 0:00:16]} 53. Qc4+ {[%clk 0:00:16]}  Kb2 {[%clk 0:00:15]} 54. Qb4+ {[%clk 0:00:14]}  Kc2 {[%clk 0:00:14]} 55. Qe4+ {[%clk 0:00:14]}  Kb2 {[%clk 0:00:14]} 56. Qe3 {[%clk 0:00:11]}  Kc2 {[%clk 0:00:10]} 57. Be4+ {[%clk 0:00:12]}  Kb2 {[%clk 0:00:10]} 58. Qxd2+ {[%clk 0:00:11]} 1-0


[Site "https://www.chess.com"]

[Event "Titled Tuesday Blitz July 13 2021"]
[White "Bortnyk, Olexandr"]
[Black "Iskusnyh, Sergei"]
[WhiteFideId "14120828"]
[BlackFideId "4120027"]
[WhiteElo "2723"]
[BlackElo "2492"]
[Result "1-0"]
[Round "09"]
[TimeControl "180+1"]
[Date "2021.07.13"]
[WhiteClock "0:00:16"]
[BlackClock "0:00:17"]

1. d4 {[%clk 0:03:00]}  d5 {[%clk 0:02:59]} 2. Nc3 {[%clk 0:03:00]}  Nf6 {[%clk 0:02:58]} 3. Bf4 {[%clk 0:03:00]}  c5 {[%clk 0:02:54]} 4. e3 {[%clk 0:02:59]}  cxd4 {[%clk 0:02:54]} 5. exd4 {[%clk 0:02:59]}  a6 {[%clk 0:02:54]} 6. Nf3 {[%clk 0:02:59]}  Bg4 {[%clk 0:02:46]} 7. Be2 {[%clk 0:02:55]}  Nc6 {[%clk 0:02:45]} 8. h3 {[%clk 0:02:53]}  Bh5 {[%clk 0:02:44]} 9. Ne5 {[%clk 0:02:36]}  Bxe2 {[%clk 0:02:42]} 10. Nxe2 {[%clk 0:02:37]}  e6 {[%clk 0:02:39]} 11. c3 {[%clk 0:02:33]}  Nxe5 {[%clk 0:02:35]} 12. Bxe5 {[%clk 0:02:29]}  Bd6 {[%clk 0:02:32]} 13. Qb3 {[%clk 0:02:18]}  O-O {[%clk 0:02:26]} 14. Bxf6 {[%clk 0:02:08]}  Qxf6 {[%clk 0:02:25]} 15. O-O {[%clk 0:02:06]}  b5 {[%clk 0:02:07]} 16. a4 {[%clk 0:01:52]}  Rab8 {[%clk 0:02:04]} 17. axb5 {[%clk 0:01:52]}  Rxb5 {[%clk 0:02:02]} 18. Qc2 {[%clk 0:01:43]}  a5 {[%clk 0:02:01]} 19. Ra2 {[%clk 0:01:39]}  Rfb8 {[%clk 0:01:59]} 20. Rfa1 {[%clk 0:01:39]}  Qg6 {[%clk 0:01:55]} 21. Qd2 {[%clk 0:01:35]}  h6 {[%clk 0:01:46]} 22. Nc1 {[%clk 0:01:29]}  a4 {[%clk 0:01:40]} 23. Nd3 {[%clk 0:01:27]}  a3 {[%clk 0:01:39]} 24. b4 {[%clk 0:01:26]}  Rc8 {[%clk 0:01:17]} 25. Rxa3 {[%clk 0:01:26]}  Rbb8 {[%clk 0:01:16]} 26. Ra6 {[%clk 0:01:25]}  Bc7 {[%clk 0:01:07]} 27. Qe2 {[%clk 0:01:12]}  Qf5 {[%clk 0:01:00]} 28. Nc5 {[%clk 0:01:10]}  Bf4 {[%clk 0:00:50]} 29. g3 {[%clk 0:01:08]}  Bg5 {[%clk 0:00:49]} 30. Kg2 {[%clk 0:01:06]}  Be7 {[%clk 0:00:48]} 31. Ra7 {[%clk 0:01:06]}  Bxc5 {[%clk 0:00:46]} 32. dxc5 {[%clk 0:01:06]}  d4 {[%clk 0:00:45]} 33. Rd7 {[%clk 0:00:40]}  dxc3 {[%clk 0:00:42]} 34. Qc4 {[%clk 0:00:40]}  c2 {[%clk 0:00:38]} 35. Rd2 {[%clk 0:00:37]}  Rd8 {[%clk 0:00:31]} 36. Rxc2 {[%clk 0:00:19]}  Rxb4 {[%clk 0:00:30]} 37. Qxb4 {[%clk 0:00:20]}  Qxc2 {[%clk 0:00:30]} 38. Ra7 {[%clk 0:00:17]}  Rc8 {[%clk 0:00:19]} 39. Qb7 {[%clk 0:00:16]}  Qe4+ {[%clk 0:00:17]} 40. Qxe4 {[%clk 0:00:16]} 1-0


[Site "https://www.chess.com"]

[Event "Titled Tuesday Blitz July 13 2021"]
[White "Bugayev, Vladimir"]
[Black "Mikhalsky, Vladimir"]
[WhiteFideId "30901480"]
[BlackFideId "14144352"]
[WhiteElo "2353"]
[BlackElo "2280"]
[Result "1-0"]
[Round "09"]
[TimeControl "180+1"]
[Date "2021.07.13"]
[WhiteClock "0:00:10"]
[BlackClock "0:00:12"]

1. e4 {[%clk 0:02:00]}  g6 {[%clk 0:02:58]} 2. Nc3 {[%clk 0:01:59]}  Bg7 {[%clk 0:02:58]} 3. f4 {[%clk 0:02:00]}  c5 {[%clk 0:02:57]} 4. Bc4 {[%clk 0:02:00]}  e6 {[%clk 0:02:56]} 5. Nf3 {[%clk 0:01:53]}  Ne7 {[%clk 0:02:54]} 6. Bb3 {[%clk 0:01:52]}  d5 {[%clk 0:02:50]} 7. d3 {[%clk 0:01:50]}  Nbc6 {[%clk 0:02:43]} 8. Ba4 {[%clk 0:01:36]}  O-O {[%clk 0:02:41]} 9. Bxc6 {[%clk 0:01:35]}  Nxc6 {[%clk 0:02:39]} 10. e5 {[%clk 0:01:35]}  f6 {[%clk 0:02:38]} 11. Qe2 {[%clk 0:01:04]}  b6 {[%clk 0:02:24]} 12. Bd2 {[%clk 0:00:59]}  Bb7 {[%clk 0:02:23]} 13. O-O-O {[%clk 0:00:59]}  f5 {[%clk 0:01:56]} 14. h3 {[%clk 0:00:57]}  d4 {[%clk 0:01:56]} 15. Nb5 {[%clk 0:00:56]}  Rf7 {[%clk 0:01:45]} 16. Nd6 {[%clk 0:00:55]}  Rc7 {[%clk 0:01:39]} 17. g4 {[%clk 0:00:49]}  Ne7 {[%clk 0:01:37]} 18. Nxb7 {[%clk 0:00:49]}  Rxb7 {[%clk 0:01:34]} 19. Ng5 {[%clk 0:00:49]}  Qd7 {[%clk 0:01:29]} 20. Qg2 {[%clk 0:00:46]}  Bh6 {[%clk 0:01:21]} 21. Nxe6 {[%clk 0:00:44]}  Rab8 {[%clk 0:00:58]} 22. gxf5 {[%clk 0:00:43]}  Nxf5 {[%clk 0:00:57]} 23. Ng5 {[%clk 0:00:43]}  Bxg5 {[%clk 0:00:56]} 24. Qxg5 {[%clk 0:00:42]}  Qa4 {[%clk 0:00:50]} 25. Kb1 {[%clk 0:00:38]}  c4 {[%clk 0:00:50]} 26. dxc4 {[%clk 0:00:36]}  Qxc4 {[%clk 0:00:49]} 27. h4 {[%clk 0:00:36]}  Rc8 {[%clk 0:00:46]} 28. h5 {[%clk 0:00:30]}  Rg7 {[%clk 0:00:28]} 29. c3 {[%clk 0:00:21]}  Qd3+ {[%clk 0:00:25]} 30. Ka1 {[%clk 0:00:20]}  b5 {[%clk 0:00:21]} 31. Bc1 {[%clk 0:00:20]}  Qf3 {[%clk 0:00:20]} 32. cxd4 {[%clk 0:00:18]}  Nxd4 {[%clk 0:00:19]} 33. hxg6 {[%clk 0:00:15]}  Nc2+ {[%clk 0:00:18]} 34. Kb1 {[%clk 0:00:14]}  Qe4 {[%clk 0:00:17]} 35. Rd8+ {[%clk 0:00:10]}  Rxd8 {[%clk 0:00:12]} 36. Qxd8# {[%clk 0:00:10]} 1-0


[Site "https://www.chess.com"]

[Event "Titled Tuesday Blitz July 13 2021"]
[White "Carlsson, Ludvig"]
[Black "Sydoryka, Vladyslav"]
[WhiteFideId "1727010"]
[BlackFideId "14145928"]
[WhiteElo "2147"]
[BlackElo "2200"]
[Result "1-0"]
[Round "09"]
[TimeControl "180+1"]
[Date "2021.07.13"]
[WhiteClock "0:01:50"]
[BlackClock "0:00:32"]

1. e4 {[%clk 0:03:00]}  c6 {[%clk 0:03:00]} 2. Nf3 {[%clk 0:03:00]}  d5 {[%clk 0:03:01]} 3. d3 {[%clk 0:03:00]}  g6 {[%clk 0:02:58]} 4. e5 {[%clk 0:02:59]}  Bg7 {[%clk 0:02:58]} 5. d4 {[%clk 0:02:57]}  h5 {[%clk 0:02:57]} 6. c4 {[%clk 0:02:56]}  Nh6 {[%clk 0:02:57]} 7. cxd5 {[%clk 0:02:53]}  cxd5 {[%clk 0:02:57]} 8. Bb5+ {[%clk 0:02:52]}  Nc6 {[%clk 0:02:55]} 9. Bxc6+ {[%clk 0:02:52]}  bxc6 {[%clk 0:02:54]} 10. O-O {[%clk 0:02:52]}  O-O {[%clk 0:02:53]} 11. h3 {[%clk 0:02:51]}  Qc7 {[%clk 0:02:41]} 12. Nc3 {[%clk 0:02:50]}  Ba6 {[%clk 0:02:30]} 13. Re1 {[%clk 0:02:50]}  e6 {[%clk 0:02:29]} 14. Na4 {[%clk 0:02:50]}  Rfc8 {[%clk 0:02:18]} 15. Nc5 {[%clk 0:02:50]}  Bb7 {[%clk 0:02:18]} 16. Bg5 {[%clk 0:02:35]}  Nf5 {[%clk 0:02:14]} 17. Rc1 {[%clk 0:02:34]}  Rab8 {[%clk 0:02:09]} 18. Qd2 {[%clk 0:02:35]}  Bf8 {[%clk 0:01:51]} 19. g4 {[%clk 0:02:32]}  hxg4 {[%clk 0:01:38]} 20. hxg4 {[%clk 0:02:33]}  Ng7 {[%clk 0:01:23]} 21. Bf6 {[%clk 0:02:27]}  Ne8 {[%clk 0:01:15]} 22. Kg2 {[%clk 0:02:12]}  Nxf6 {[%clk 0:00:37]} 23. exf6 {[%clk 0:02:13]}  Bxc5 {[%clk 0:00:37]} 24. Rxc5 {[%clk 0:01:57]}  Kf8 {[%clk 0:00:35]} 25. Qh6+ {[%clk 0:01:54]}  Ke8 {[%clk 0:00:34]} 26. Ne5 {[%clk 0:01:54]}  Qd6 {[%clk 0:00:33]} 27. Qh8+ {[%clk 0:01:48]}  Qf8 {[%clk 0:00:32]} 28. Qxf8+ {[%clk 0:01:49]}  Kxf8 {[%clk 0:00:33]} 29. Rh1 {[%clk 0:01:50]}  Kg8 {[%clk 0:00:32]} 30. Rc3 {[%clk 0:01:50]} 1-0


[Site "https://www.chess.com"]

[Event "Titled Tuesday Blitz July 13 2021"]
[White "Costachi, Mihnea"]
[Black "Ibrahimli, Murad"]
[WhiteFideId "1217518"]
[BlackFideId "13410229"]
[WhiteElo "2482"]
[BlackElo "2109"]
[Result "0-1"]
[Round "09"]
[TimeControl "180+1"]
[Date "2021.07.13"]
[WhiteClock "0:01:10"]
[BlackClock "0:00:52"]

1. d4 {[%clk 0:03:00]}  Nf6 {[%clk 0:03:00]} 2. c4 {[%clk 0:03:00]}  e6 {[%clk 0:03:00]} 3. Nf3 {[%clk 0:03:00]}  d5 {[%clk 0:03:00]} 4. Nc3 {[%clk 0:03:00]}  Bb4 {[%clk 0:02:59]} 5. cxd5 {[%clk 0:03:00]}  exd5 {[%clk 0:02:59]} 6. Bg5 {[%clk 0:03:01]}  h6 {[%clk 0:02:59]} 7. Bh4 {[%clk 0:03:00]}  g5 {[%clk 0:02:59]} 8. Bg3 {[%clk 0:02:57]}  Ne4 {[%clk 0:02:58]} 9. Qb3 {[%clk 0:02:54]}  Nc6 {[%clk 0:02:53]} 10. e3 {[%clk 0:02:53]}  h5 {[%clk 0:02:48]} 11. Bb5 {[%clk 0:02:51]}  Bxc3+ {[%clk 0:02:41]} 12. bxc3 {[%clk 0:02:52]}  h4 {[%clk 0:02:41]} 13. Be5 {[%clk 0:02:34]}  f6 {[%clk 0:02:41]} 14. c4 {[%clk 0:02:34]}  a6 {[%clk 0:02:35]} 15. cxd5 {[%clk 0:02:10]}  axb5 {[%clk 0:02:29]} 16. dxc6 {[%clk 0:02:10]}  bxc6 {[%clk 0:02:29]} 17. Qc2 {[%clk 0:02:11]}  Qd5 {[%clk 0:02:26]} 18. Bxc7 {[%clk 0:02:11]}  h3 {[%clk 0:02:24]} 19. O-O {[%clk 0:02:01]}  hxg2 {[%clk 0:02:24]} 20. Rfc1 {[%clk 0:02:02]}  g4 {[%clk 0:02:06]} 21. Nd2 {[%clk 0:01:57]}  Ng5 {[%clk 0:02:01]} 22. Qg6+ {[%clk 0:01:56]}  Qf7 {[%clk 0:01:17]} 23. Qxf7+ {[%clk 0:01:54]}  Kxf7 {[%clk 0:01:18]} 24. Kxg2 {[%clk 0:01:54]}  Be6 {[%clk 0:01:18]} 25. e4 {[%clk 0:01:48]}  Nxe4 {[%clk 0:01:18]} 26. Nxe4 {[%clk 0:01:46]}  Bd5 {[%clk 0:01:19]} 27. f3 {[%clk 0:01:26]}  gxf3+ {[%clk 0:01:19]} 28. Kxf3 {[%clk 0:01:27]}  Ra3+ {[%clk 0:01:15]} 29. Kg2 {[%clk 0:01:20]}  Bxe4+ {[%clk 0:01:13]} 30. Kg1 {[%clk 0:01:20]}  Bd5 {[%clk 0:01:10]} 31. Rc2 {[%clk 0:01:18]}  Rh4 {[%clk 0:01:01]} 32. Rd2 {[%clk 0:01:13]}  Ke6 {[%clk 0:00:53]} 33. Bg3 {[%clk 0:01:10]}  Rxg3+ {[%clk 0:00:52]} 34. hxg3 {[%clk 0:01:07]}  Rh1+ {[%clk 0:00:52]} 35. Kf2 {[%clk 0:01:08]}  Rxa1 {[%clk 0:00:51]} 36. Ke3 {[%clk 0:01:09]}  Rxa2 {[%clk 0:00:51]} 37. Rxa2 {[%clk 0:01:10]}  Bxa2 {[%clk 0:00:52]} 0-1


[Site "https://www.chess.com"]

[Event "Titled Tuesday Blitz July 13 2021"]
[White "Cunjalo, Faris"]
[Black "Nguyen, Quoc Hy"]
[WhiteFideId "14410710"]
[BlackFideId "12410853"]
[WhiteElo "2851"]
[BlackElo "2702"]
[Result "1-0"]
[Round "09"]
[TimeControl "180+1"]
[Date "2021.07.13"]
[WhiteClock "0:00:03"]
[BlackClock "0:00:02"]

1. c4 {[%clk 0:03:00]}  Nf6 {[%clk 0:02:58]} 2. Nc3 {[%clk 0:03:00]}  c6 {[%clk 0:02:57]} 3. e4 {[%clk 0:03:00]}  e5 {[%clk 0:02:56]} 4. Nf3 {[%clk 0:03:00]}  d6 {[%clk 0:02:55]} 5. d4 {[%clk 0:03:00]}  Bg4 {[%clk 0:02:51]} 6. Be2 {[%clk 0:02:52]}  Bxf3 {[%clk 0:02:51]} 7. Bxf3 {[%clk 0:02:51]}  Nbd7 {[%clk 0:02:52]} 8. d5 {[%clk 0:02:43]}  c5 {[%clk 0:02:44]} 9. g3 {[%clk 0:02:39]}  g6 {[%clk 0:02:43]} 10. h4 {[%clk 0:02:12]}  h5 {[%clk 0:02:29]} 11. Bg2 {[%clk 0:02:08]}  Bh6 {[%clk 0:02:28]} 12. Bh3 {[%clk 0:02:07]}  Bxc1 {[%clk 0:02:27]} 13. Qxc1 {[%clk 0:02:08]}  a6 {[%clk 0:02:25]} 14. a4 {[%clk 0:01:58]}  Qc7 {[%clk 0:02:22]} 15. O-O {[%clk 0:01:56]}  O-O-O {[%clk 0:02:14]} 16. a5 {[%clk 0:01:54]}  Kb8 {[%clk 0:02:14]} 17. Qe3 {[%clk 0:01:31]}  Rdf8 {[%clk 0:01:45]} 18. f3 {[%clk 0:01:21]}  Ne8 {[%clk 0:01:26]} 19. f4 {[%clk 0:00:45]}  f5 {[%clk 0:01:23]} 20. exf5 {[%clk 0:00:42]}  gxf5 {[%clk 0:01:23]} 21. Ne2 {[%clk 0:00:37]}  e4 {[%clk 0:01:02]} 22. Kh1 {[%clk 0:00:34]}  Ng7 {[%clk 0:00:54]} 23. Qc3 {[%clk 0:00:31]}  Rhg8 {[%clk 0:00:47]} 24. Rab1 {[%clk 0:00:29]}  Rf7 {[%clk 0:00:37]} 25. Rf2 {[%clk 0:00:26]}  Nf6 {[%clk 0:00:36]} 26. b4 {[%clk 0:00:25]}  Ng4 {[%clk 0:00:36]} 27. Bxg4 {[%clk 0:00:24]}  fxg4 {[%clk 0:00:33]} 28. b5 {[%clk 0:00:20]}  Ka8 {[%clk 0:00:11]} 29. bxa6 {[%clk 0:00:17]}  bxa6 {[%clk 0:00:12]} 30. Rb6 {[%clk 0:00:18]}  Ka7 {[%clk 0:00:11]} 31. Nc1 {[%clk 0:00:14]}  Nf5 {[%clk 0:00:10]} 32. Rfb2 {[%clk 0:00:15]}  Nd4 {[%clk 0:00:09]} 33. Ne2 {[%clk 0:00:09]}  Nxe2 {[%clk 0:00:05]} 34. Rxe2 {[%clk 0:00:10]}  Re8 {[%clk 0:00:04]} 35. Kg2 {[%clk 0:00:06]}  Rfe7 {[%clk 0:00:03]} 36. Qe3 {[%clk 0:00:05]}  Qd7 {[%clk 0:00:03]} 37. Reb2 {[%clk 0:00:06]}  Qc7 {[%clk 0:00:03]} 38. Kf2 {[%clk 0:00:05]}  Qd7 {[%clk 0:00:03]} 39. Ke2 {[%clk 0:00:05]}  Qc7 {[%clk 0:00:04]} 40. Qb3 {[%clk 0:00:05]}  e3 {[%clk 0:00:03]} 41. Qa4 {[%clk 0:00:03]}  Qd7 {[%clk 0:00:02]} 42. Rc6 {[%clk 0:00:03]}  Rd8 {[%clk 0:00:02]} 43. Rbb6 {[%clk 0:00:03]} 1-0


[Site "https://www.chess.com"]

[Event "Titled Tuesday Blitz July 13 2021"]
[White "Daianu, Cristian-Clement"]
[Black "Rodrigues, Bruno Morado"]
[WhiteFideId "1208926"]
[BlackFideId "2115654"]
[WhiteElo "2133"]
[BlackElo "2040"]
[Result "0-1"]
[Round "09"]
[TimeControl "180+1"]
[Date "2021.07.13"]
[WhiteClock "0:00:20"]
[BlackClock "0:00:10"]

1. e4 {[%clk 0:03:00]}  c5 {[%clk 0:03:00]} 2. Nf3 {[%clk 0:03:00]}  Nc6 {[%clk 0:03:00]} 3. d4 {[%clk 0:03:00]}  cxd4 {[%clk 0:03:00]} 4. Nxd4 {[%clk 0:03:01]}  e5 {[%clk 0:03:00]} 5. Nb5 {[%clk 0:03:00]}  d6 {[%clk 0:03:00]} 6. Be2 {[%clk 0:02:52]}  Nf6 {[%clk 0:02:44]} 7. N5c3 {[%clk 0:02:47]}  Be7 {[%clk 0:02:44]} 8. O-O {[%clk 0:02:47]}  O-O {[%clk 0:02:44]} 9. Bg5 {[%clk 0:02:45]}  Nxe4 {[%clk 0:02:31]} 10. Nxe4 {[%clk 0:02:45]}  Bxg5 {[%clk 0:02:31]} 11. Nxd6 {[%clk 0:02:45]}  Be6 {[%clk 0:02:24]} 12. Nc3 {[%clk 0:02:38]}  Qb6 {[%clk 0:02:10]} 13. Nde4 {[%clk 0:02:37]}  Be7 {[%clk 0:02:07]} 14. Bg4 {[%clk 0:02:33]}  f5 {[%clk 0:02:02]} 15. Bh3 {[%clk 0:02:33]}  Nd4 {[%clk 0:01:46]} 16. Nd2 {[%clk 0:02:24]}  Qxb2 {[%clk 0:01:42]} 17. Ne2 {[%clk 0:02:23]}  Nxc2 {[%clk 0:01:20]} 18. Rb1 {[%clk 0:02:19]}  Qxa2 {[%clk 0:01:13]} 19. Nc3 {[%clk 0:02:12]}  Qa5 {[%clk 0:01:12]} 20. Qxc2 {[%clk 0:02:12]}  Rac8 {[%clk 0:01:13]} 21. Rbc1 {[%clk 0:01:38]}  Ba3 {[%clk 0:01:00]} 22. Ndb1 {[%clk 0:01:27]}  Bxc1 {[%clk 0:00:56]} 23. Rxc1 {[%clk 0:01:27]}  b5 {[%clk 0:00:44]} 24. Qb2 {[%clk 0:01:21]}  b4 {[%clk 0:00:43]} 25. Ne2 {[%clk 0:01:20]}  Rxc1+ {[%clk 0:00:28]} 26. Nxc1 {[%clk 0:01:19]}  b3 {[%clk 0:00:25]} 27. g3 {[%clk 0:01:16]}  Rc8 {[%clk 0:00:19]} 28. Nxb3 {[%clk 0:01:09]}  Qe1+ {[%clk 0:00:18]} 29. Bf1 {[%clk 0:01:07]}  Rb8 {[%clk 0:00:16]} 30. N1d2 {[%clk 0:01:04]}  e4 {[%clk 0:00:15]} 31. Qe5 {[%clk 0:01:02]}  Re8 {[%clk 0:00:15]} 32. Qf4 {[%clk 0:00:54]}  Rd8 {[%clk 0:00:13]} 33. Nc5 {[%clk 0:00:49]}  Rxd2 {[%clk 0:00:09]} 34. Nxe6 {[%clk 0:00:49]}  Rd1 {[%clk 0:00:09]} 35. Qb8+ {[%clk 0:00:43]}  Kf7 {[%clk 0:00:09]} 36. Nd8+ {[%clk 0:00:25]}  Kg6 {[%clk 0:00:08]} 37. Qb5 {[%clk 0:00:19]}  Rxd8 {[%clk 0:00:07]} 38. h4 {[%clk 0:00:19]}  Rd1 {[%clk 0:00:07]} 39. h5+ {[%clk 0:00:19]}  Kg5 {[%clk 0:00:07]} 40. h6 {[%clk 0:00:18]}  Qxf1+ {[%clk 0:00:07]} 41. Qxf1 {[%clk 0:00:17]}  Rxf1+ {[%clk 0:00:08]} 42. Kxf1 {[%clk 0:00:18]}  gxh6 {[%clk 0:00:09]} 43. Ke2 {[%clk 0:00:19]}  a5 {[%clk 0:00:09]} 44. Ke3 {[%clk 0:00:19]}  Kg4 {[%clk 0:00:10]} 45. Kd4 {[%clk 0:00:20]}  Kf3 {[%clk 0:00:10]} 0-1


[Site "https://www.chess.com"]

[Event "Titled Tuesday Blitz July 13 2021"]
[White "Damjanovic, Vladimir"]
[Black "Aldokhin, Ivan"]
[WhiteFideId "903795"]
[BlackFideId "24115720"]
[WhiteElo "2374"]
[BlackElo "2306"]
[Result "1-0"]
[Round "09"]
[TimeControl "180+1"]
[Date "2021.07.13"]
[WhiteClock "0:00:03"]
[BlackClock "0:00:02"]

1. e4 {[%clk 0:03:00]}  c5 {[%clk 0:03:00]} 2. Nf3 {[%clk 0:03:00]}  e6 {[%clk 0:03:00]} 3. g3 {[%clk 0:03:00]}  Nc6 {[%clk 0:02:59]} 4. Bg2 {[%clk 0:03:00]}  Nf6 {[%clk 0:02:59]} 5. Qe2 {[%clk 0:03:00]}  Be7 {[%clk 0:02:59]} 6. e5 {[%clk 0:02:56]}  Nd5 {[%clk 0:02:59]} 7. d3 {[%clk 0:02:55]}  O-O {[%clk 0:02:54]} 8. O-O {[%clk 0:02:53]}  d6 {[%clk 0:02:36]} 9. exd6 {[%clk 0:02:54]}  Bxd6 {[%clk 0:02:34]} 10. Nbd2 {[%clk 0:02:54]}  b6 {[%clk 0:02:29]} 11. Nc4 {[%clk 0:02:47]}  Bb7 {[%clk 0:02:29]} 12. h4 {[%clk 0:02:39]}  h6 {[%clk 0:02:26]} 13. c3 {[%clk 0:02:27]}  Bc7 {[%clk 0:02:21]} 14. Re1 {[%clk 0:02:22]}  Qf6 {[%clk 0:02:17]} 15. Nfe5 {[%clk 0:01:50]}  Bxe5 {[%clk 0:02:06]} 16. Nxe5 {[%clk 0:01:50]}  Rad8 {[%clk 0:02:06]} 17. Nxc6 {[%clk 0:01:19]}  Bxc6 {[%clk 0:02:06]} 18. Be4 {[%clk 0:01:20]}  Ne7 {[%clk 0:01:56]} 19. Bf4 {[%clk 0:01:20]}  Bxe4 {[%clk 0:01:49]} 20. dxe4 {[%clk 0:01:20]}  e5 {[%clk 0:01:44]} 21. Be3 {[%clk 0:01:15]}  Qe6 {[%clk 0:01:45]} 22. b3 {[%clk 0:01:10]}  Rd7 {[%clk 0:01:32]} 23. Rad1 {[%clk 0:01:07]}  Rfd8 {[%clk 0:01:32]} 24. Kg2 {[%clk 0:01:01]}  Qc6 {[%clk 0:01:32]} 25. f3 {[%clk 0:00:56]}  f5 {[%clk 0:01:32]} 26. Qc4+ {[%clk 0:00:47]}  Kh7 {[%clk 0:01:28]} 27. Rxd7 {[%clk 0:00:46]}  Rxd7 {[%clk 0:01:27]} 28. exf5 {[%clk 0:00:47]}  Nxf5 {[%clk 0:01:19]} 29. Bf2 {[%clk 0:00:46]}  Qd5 {[%clk 0:00:56]} 30. Qg4 {[%clk 0:00:23]}  Rf7 {[%clk 0:00:43]} 31. h5 {[%clk 0:00:23]}  Rf6 {[%clk 0:00:40]} 32. c4 {[%clk 0:00:13]}  Qd6 {[%clk 0:00:22]} 33. Qe4 {[%clk 0:00:13]}  g6 {[%clk 0:00:16]} 34. hxg6+ {[%clk 0:00:12]}  Kg7 {[%clk 0:00:14]} 35. Qxe5 {[%clk 0:00:04]}  Qxe5 {[%clk 0:00:14]} 36. Rxe5 {[%clk 0:00:05]}  Kxg6 {[%clk 0:00:15]} 37. g4 {[%clk 0:00:05]}  Nd6 {[%clk 0:00:12]} 38. Bh4 {[%clk 0:00:02]}  Nf7 {[%clk 0:00:07]} 39. Bxf6 {[%clk 0:00:03]}  Kxf6 {[%clk 0:00:07]} 40. Rf5+ {[%clk 0:00:03]}  Ke6 {[%clk 0:00:07]} 41. Kg3 {[%clk 0:00:04]}  Nd6 {[%clk 0:00:07]} 42. Rd5 {[%clk 0:00:03]}  Ne8 {[%clk 0:00:06]} 43. f4 {[%clk 0:00:03]}  Nf6 {[%clk 0:00:05]} 44. f5+ {[%clk 0:00:04]}  Kf7 {[%clk 0:00:03]} 45. Re5 {[%clk 0:00:03]}  Nh7 {[%clk 0:00:03]} 46. Kf4 {[%clk 0:00:03]}  Ng5 {[%clk 0:00:04]} 47. Re3 {[%clk 0:00:03]}  Kf6 {[%clk 0:00:04]} 48. Rd3 {[%clk 0:00:03]}  Ke7 {[%clk 0:00:04]} 49. Ke5 {[%clk 0:00:02]}  Nf7+ {[%clk 0:00:04]} 50. Kd5 {[%clk 0:00:03]}  a6 {[%clk 0:00:02]} 51. Re3+ {[%clk 0:00:03]}  Kd7 {[%clk 0:00:02]} 52. f6 {[%clk 0:00:03]}  Ng5 {[%clk 0:00:02]} 53. Re7+ {[%clk 0:00:04]}  Kd8 {[%clk 0:00:02]} 54. Kd6 {[%clk 0:00:04]}  Nf3 {[%clk 0:00:02]} 55. f7 {[%clk 0:00:03]} 1-0


[Site "https://www.chess.com"]